bitfinex-derivatives/quotes_ETHF0:USTF0_20251007
["timestamp","ask_amount","ask_price","bid_price","bid_amount"]
[1759880342677,0.40251,4469.7,4469.6,3.82120817]
[1759880342882,0.40251,4469.7,4469.6,4.62500817]
[1759880343185,0.40251,4469.7,4469.6,1.4306]
[1759880344691,3.33154104,4469.7,4469.6,0.6268]
[1759880345995,1.00632,4469.5,4469.1,0.6268]
[1759880346285,0.40255,4469.2,4469.0,0.2382]
[1759880346490,0.225,4469.1,4469.0,0.2382]
[1759880346690,3.11862653,4469.1,4469.0,0.2382]
[1759880346897,3.11862653,4469.1,4469.0,0.865]
[1759880351198,2.89362653,4469.1,4469.0,4.05940817]
[1759880351392,3.11862653,4469.1,4469.0,4.05940817]
[1759880352595,3.11862653,4469.1,4469.0,0.865]
[1759880352797,3.11862653,4469.1,4469.0,0.2382]
[1759880353592,3.11862653,4469.1,4468.5,0.2382]
[1759880353593,1.00643,4469.0,4468.5,0.2382]
[1759880353792,3.6104,4468.6,4468.5,0.2382]
[1759880354090,6.73310282,4468.6,4468.5,0.2382]
[1759880355301,0.40269,4467.6,4467.5,2.86432712]
[1759880355494,0.62769,4467.6,4467.5,0.8598]
[1759880355800,3.57964045,4467.6,4467.5,4.05420817]
[1759880356098,4.12910891,4467.6,4467.5,4.05420817]
[1759880356298,3.57964045,4467.6,4467.5,4.05593664]
[1759880358402,3.57964045,4467.6,4467.5,0.86152847]
[1759880362808,0.40274,4467.1,4467.0,0.8598]
[1759880363002,3.83554,4467.1,4467.0,0.8598]
[1759880363305,6.75659023,4467.1,4467.0,4.05420817]
[1759880363702,0.40278,4466.6,4466.5,0.233]
[1759880363900,3.83829367,4466.6,4466.5,0.23556801]
[1759880364203,3.83829367,4466.6,4465.5,0.233]
[1759880364204,1.00706,4466.2,4465.5,0.233]
[1759880364403,3.83563,4466.1,4465.5,0.233]
[1759880364597,0.40287,4465.6,4465.5,0.233]
[1759880364797,0.62787,4465.6,4465.5,0.233]
[1759880365003,3.48152817,4465.6,4465.5,3.42740817]
[1759880365206,6.68932817,4465.6,4465.5,0.23507213]
[1759880365403,0.40292,4465.1,4465.0,6.76e-06]
[1759880365597,3.83572,4465.1,4465.0,0.23300676]
[1759880365802,6.77386353,4465.1,4465.0,0.233]
[1759880366501,11.77386353,4465.1,4465.0,0.00165185]
[1759880366705,0.40301,4464.1,4463.6,0.6268]
[1759880366910,0.62801,4464.1,4464.0,0.8598]
[1759880367107,3.47267665,4464.1,4464.0,0.8598]
[1759880367303,3.47267665,4464.1,4464.0,0.233]
[1759880367501,3.47267665,4464.1,4463.6,0.6039]
[1759880367502,0.40305,4463.7,4463.6,0.6039]
[1759880367699,0.62805,4463.7,4463.6,3.79830817]
[1759880367907,3.48511381,4463.7,4463.6,0.60634963]
[1759880368112,6.69291381,4463.7,4463.6,0.60634963]
[1759880369204,6.69291381,4463.7,4463.5,0.233]
[1759880370210,6.69291381,4463.7,4463.6,0.6039]
[1759880370406,6.69291381,4463.7,4463.6,3.79830817]
[1759880370610,6.69291381,4463.7,4463.6,0.6039]
[1759880371413,3.2078,4464.2,4464.1,0.6039]
[1759880371712,6.71103107,4464.2,4464.1,3.79830817]
[1759880371910,6.71103107,4464.2,4464.1,0.6039]
[1759880372412,6.71103107,4464.2,4464.0,0.2496]
[1759880373311,6.08303107,4464.2,4464.1,3.79830817]
[1759880373506,6.08303107,4464.2,4464.1,4.20820817]
[1759880373707,6.08303107,4464.2,4464.1,6.4133]
[1759880373906,6.30803107,4464.2,4464.1,6.4133]
[1759880374306,2.87523107,4464.2,4464.1,6.4133]
[1759880374710,2.91043678,4464.7,4464.6,0.6039]
[1759880375015,3.13543678,4464.7,4464.6,3.79830817]
[1759880375214,3.13543678,4464.7,4464.6,0.6039]
[1759880376014,1.9894,4464.5,4463.0,0.233]
[1759880376227,3.61086,4463.6,4463.5,0.83943307]
[1759880376518,6.68596729,4463.6,4463.5,0.83943307]
[1759880377420,6.68596729,4463.6,4463.5,0.23553307]
[1759880377614,6.68596729,4463.6,4463.5,0.83943307]
[1759880378013,6.46096729,4463.6,4463.5,0.83943307]
[1759880378415,6.46096729,4463.6,4463.5,4.03384124]
[1759880378416,6.68596729,4463.6,4463.5,4.03384124]
[1759880378720,6.46096729,4463.6,4463.5,4.03384124]
[1759880379018,6.68596729,4463.6,4463.5,4.03384124]
[1759880379809,6.28290729,4463.6,4463.5,4.03384124]
[1759880380013,6.28290729,4463.6,4463.5,5.83943307]
[1759880380224,2.85010729,4463.6,4463.5,9.03384124]
[1759880380522,0.40296,4464.6,4464.5,0.2408]
[1759880380710,0.62796,4464.6,4464.5,0.2408]
[1759880380912,3.49336384,4464.6,4464.5,4.09860817]
[1759880384024,3.09040384,4464.6,4464.5,4.09860817]
[1759880384921,0.225,4464.6,4464.5,4.09860817]
[1759880385333,3.83576,4464.7,4464.6,0.6634]
[1759880385523,3.83576,4464.7,4464.6,3.85780817]
[1759880385829,6.76183993,4464.7,4464.6,0.6634]
[1759880386529,0.40292,4465.1,4465.0,0.9042]
[1759880386724,3.2078,4465.2,4465.1,0.6634]
[1759880386926,3.2078,4465.2,4465.1,3.85780817]
[1759880387233,3.2078,4465.2,4465.1,0.6634]
[1759880387731,3.2078,4465.2,4465.1,5.6634]
[1759880387929,0.4029,4465.4,4465.2,0.6634]
[1759880388133,0.4029,4465.4,4465.3,3.85780817]
[1759880388733,0.4029,4465.4,4465.3,0.6634]
[1759880390430,0.4029,4465.4,4465.3,1.0655]
[1759880390630,0.4029,4465.4,4465.3,1.4756]
[1759880393140,3.83566,4465.8,4465.7,1.4756]
[1759880393338,3.61066,4465.8,4465.7,4.67000817]
[1759880396644,0.40286,4465.8,4465.7,9.89500817]
[1759880396940,0.40286,4465.8,4465.7,4.89500817]
[1759880401044,0.225,4466.2,4466.1,1.4966]
[1759880401242,0.62782,4466.2,4466.1,4.69100817]
[1759880401543,0.62782,4466.2,4466.1,1.4966]
[1759880402147,0.40282,4466.2,4466.1,1.4966]
[1759880402444,0.40282,4466.3,4466.1,0.8601]
[1759880402646,3.2078,4466.4,4466.2,4.91600817]
[1759880402845,1.00684,4467.2,4466.5,1.7552]
[1759880402846,3.2078,4467.0,4466.5,1.7552]
[1759880403042,3.2078,4467.0,4466.5,5.17460817]
[1759880403537,0.40550367,4466.6,4466.5,5.17460817]
[1759880405243,0.00271367,4466.6,4466.5,5.17460817]
[1759880405845,1.23174,4467.6,4467.0,0.2586]
[1759880405846,0.40273,4467.2,4467.0,0.2586]
[1759880406045,0.40271,4467.4,4467.1,4.91600817]
[1759880406252,0.40271,4467.4,4467.3,1.4966]
[1759880406452,0.40271,4467.4,4467.3,4.91600817]
[1759880406754,0.40271,4467.4,4467.3,1.7216]
[1759880407053,0.40461067,4467.4,4467.3,1.72348541]
[1759880413559,0.40461067,4467.4,4467.3,1.49848541]
[1759880413855,0.40461067,4467.4,4467.3,1.72348541]
[1759880417057,0.40461067,4467.4,4467.3,1.49848541]
[1759880417257,0.40461067,4467.4,4467.3,0.63838541]
[1759880417258,0.95961792,4467.4,4467.3,0.63838541]
[1759880417557,0.95961792,4467.4,4467.3,1.07138541]
[1759880418057,1.18461792,4467.4,4467.3,1.07138541]
[1759880418851,1.18461792,4467.4,4467.3,0.63838541]
[1759880419056,9.14084547,4467.4,4467.3,0.63838541]
[1759880421459,0.95961792,4467.4,4467.3,1.49848541]
[1759880422059,0.55690792,4467.4,4467.3,1.90120541]
[1759880422258,0.00190067,4467.4,4467.3,2.12620541]
[1759880422460,0.5572727,4467.4,4467.3,2.12620541]
[1759880422858,0.5572727,4467.4,4467.3,1.72348541]
[1759880424859,0.5572727,4467.4,4467.3,1.49848541]
[1759880425065,3.7650727,4467.4,4467.3,0.63838541]
[1759880425563,3.9900727,4467.4,4467.3,0.63838541]
[1759880426363,3.9900727,4467.4,4467.3,1.49848541]
[1759880426761,0.00190067,4467.4,4467.3,1.49848541]
[1759880429158,0.00190067,4467.4,4467.3,1.72348541]
[1759880429663,0.40461067,4467.4,4467.3,1.72348541]
[1759880431266,0.40461067,4467.4,4467.3,2.12620541]
[1759880431655,0.00190067,4467.4,4467.3,2.12620541]
[1759880431858,0.40461067,4467.4,4467.3,2.12620541]
[1759880433670,0.40461067,4467.4,4467.3,1.72348541]
[1759880433870,0.40461067,4467.4,4467.3,2.12620541]
[1759880434369,0.40461067,4467.4,4467.3,1.72348541]
[1759880434568,0.40461067,4467.4,4467.3,1.49848541]
[1759880435862,0.40461067,4467.4,4467.3,1.90120541]
[1759880436065,0.40461067,4467.4,4467.3,1.49848541]
[1759880437170,0.40274,4467.1,4467.0,0.2586]
[1759880437563,8.92625092,4467.1,4467.0,0.25588633]
[1759880438169,8.92625092,4467.1,4467.0,0.25858645]
[1759880438764,8.92625092,4467.1,4467.0,6.45e-06]
[1759880438969,0.40283,4466.1,4465.3,3.2078]
[1759880439172,3.83563,4466.1,4466.0,0.8721]
[1759880439467,0.40287,4465.7,4465.6,0.5933]
[1759880439767,3.54066244,4465.7,4465.6,0.5933]
[1759880439966,3.54066244,4465.7,4465.6,0.59571272]
[1759880440569,8.54066244,4465.7,4465.6,0.59571272]
[1759880440867,8.54066244,4465.7,4465.6,0.00241272]
[1759880441470,8.54066244,4465.7,4465.6,0.59571272]
[1759880441770,3.31566244,4465.7,4465.6,1.02131272]
[1759880441971,3.54066244,4465.7,4465.6,1.02131272]
[1759880444473,3.54066244,4465.7,4465.6,1.42131272]
[1759880445071,3.13779244,4465.7,4465.6,1.42131272]
[1759880445272,2.91279244,4465.7,4465.6,1.42131272]
[1759880447077,2.91279244,4465.7,4465.6,0.59571272]
[1759880448577,2.91279244,4465.7,4465.6,1.02131272]
[1759880448978,2.91279244,4465.7,4465.6,1.42131272]
[1759880449372,0.40286,4465.8,4465.7,0.5933]
[1759880449573,3.61063,4466.1,4466.0,1.0594]
[1759880449877,3.61063,4466.1,4466.0,4.84710817]
[1759880450075,3.2078,4466.1,4466.0,4.84710817]
[1759880451179,1.00871067,4467.4,4466.5,1.6527]
[1759880451180,0.40279,4466.6,4466.5,1.6527]
[1759880451579,0.40279,4466.6,4466.5,4.84710817]
[1759880455378,0.40279,4466.6,4466.5,0.8271]
[1759880456187,0.40279,4466.6,4466.5,1.2527]
[1759880458084,0.40279,4466.6,4466.5,0.8271]
[1759880458085,3.3802527,4466.6,4466.5,0.8271]
[1759880458486,8.3802527,4466.6,4466.5,0.8271]
[1759880463287,3.3802527,4466.6,4466.5,0.8271]
[1759880463784,3.3802527,4466.6,4466.0,0.2338]
[1759880463785,0.40283,4466.1,4466.0,0.2338]
[1759880463990,0.40287,4465.7,4465.6,0.00241272]
[1759880464192,0.62787,4465.7,4465.6,0.00241272]
[1759880465188,0.62787,4465.7,4465.6,0.82461272]
[1759880465886,0.62787,4465.7,4465.6,1.45961272]
[1759880467587,0.40287,4465.7,4465.6,1.45961272]
[1759880471800,0.40286,4465.8,4465.7,1.4572]
[1759880472302,0.40286,4465.8,4465.7,4.65160817]
[1759880472801,0.40286,4465.8,4465.7,3.82940817]
[1759880473506,0.40286,4465.8,4465.7,4.23680817]
[1759880473803,0.9574148,4465.8,4465.7,4.23680817]
[1759880474802,0.9574148,4465.8,4465.0,0.2394]
[1759880474803,0.40292,4465.1,4465.0,0.2394]
[1759880474998,0.40296,4464.6,4464.1,0.635]
[1759880475196,0.40298,4464.4,4464.3,0.635]
[1759880475400,0.40298,4464.4,4463.8,3.2078]
[1759880475401,0.40303,4463.9,4463.8,3.2078]
[1759880475600,0.62803,4463.9,4463.8,3.2078]
[1759880475799,3.53655388,4463.9,4463.8,0.00231883]
[1759880476195,3.53655388,4463.9,4463.8,8.83e-06]
[1759880477501,8.13352388,4463.9,4463.2,0.635]
[1759880477701,0.40308,4463.3,4463.2,0.635]
[1759880477901,0.62808,4463.3,4463.2,0.635]
[1759880478102,3.32732734,4463.3,4463.2,3.23507817]
[1759880478297,0.40308,4463.4,4463.3,0.635]
[1759880478502,0.40308,4463.4,4463.3,1.4572]
[1759880478699,0.40308,4463.4,4463.3,1.45949362]
[1759880479310,0.40308,4463.4,4463.3,0.63729362]
[1759880479812,0.40308,4463.4,4463.3,1.04469362]
[1759880482212,0.40308,4463.4,4463.3,0.63729362]
[1759880484913,0.40308,4463.4,4463.3,1.04469362]
[1759880487710,0.40308,4463.4,4463.3,0.63729362]
[1759880489113,0.40308,4463.4,4463.3,1.07269362]
[1759880490706,0.40308,4463.4,4463.3,1.47569362]
[1759880491309,0.002622,4463.9,4463.5,0.24]
[1759880491509,0.405652,4463.9,4463.8,3.20507817]
[1759880491804,0.002622,4463.9,4463.7,1.0242]
[1759880492009,0.40304,4463.8,4463.7,1.4272]
[1759880492507,0.40304,4463.8,4463.7,3.20507817]
[1759880493108,0.405652,4463.9,4463.8,1.4272]
[1759880493315,0.405652,4463.9,4463.8,3.20507817]
[1759880493502,0.405652,4463.9,4463.8,1.4272]
[1759880493708,0.405652,4463.9,4463.8,1.0242]
[1759880495908,0.405652,4463.9,4463.8,1.4272]
[1759880498415,0.95763265,4463.9,4463.8,1.4272]
[1759880498917,0.405652,4463.9,4463.8,1.4272]
[1759880499215,0.95763254,4463.9,4463.8,1.4272]
[1759880499816,0.40306,4463.6,4463.5,0.24]
[1759880500018,1.00763,4463.7,4463.3,0.00229362]
[1759880500319,0.40307,4463.4,4463.3,0.00229362]
[1759880500515,0.95505054,4463.4,4463.3,0.00229362]
[1759880500819,3.818903,4463.4,4463.3,0.00229362]
[1759880501113,0.40309,4463.2,4462.5,3.444]
[1759880501414,3.08885246,4463.1,4463.0,0.8551]
[1759880501814,3.64169231,4463.1,4463.0,0.8551]
[1759880502208,3.64169231,4463.1,4463.0,0.85760516]
[1759880504814,3.64169231,4463.1,4463.0,1.69980516]
[1759880505216,3.41669231,4463.1,4463.0,3.47768333]
[1759880505421,0.55283985,4463.1,4463.0,11.68548333]
[1759880507418,0.55283985,4463.1,4463.0,11.91048333]
[1759880507817,1.18798114,4463.9,4463.3,0.8422]
[1759880508015,0.40307,4463.4,4463.3,0.8422]
[1759880508219,0.40307,4463.4,4463.3,4.05]
[1759880508519,0.40307,4463.4,4463.3,4.6689]
[1759880510822,0.40307,4463.4,4463.3,4.8939]
[1759880511523,0.40307,4463.4,4463.3,5.29698]
[1759880511724,0.002622,4463.9,4463.8,1.86414]
[1759880511922,0.002622,4463.9,4463.8,5.29694]
[1759880512422,0.405652,4463.9,4463.8,5.29694]
[1759880513223,0.002622,4463.9,4463.8,5.29694]
[1759880517633,0.405652,4463.9,4463.8,5.29694]
[1759880518132,0.405652,4463.9,4463.8,4.8939]
[1759880519627,0.405652,4463.9,4463.8,4.2545]
[1759880519925,0.40306,4463.6,4463.5,0.6496]
[1759880520328,3.89870066,4463.6,4463.5,1.0435]
[1759880520730,0.94837354,4463.6,4463.5,1.0435]
[1759880521937,0.94837354,4463.6,4463.5,1.6851]
[1759880522338,0.40306,4463.6,4463.5,1.6851]
[1759880522541,0.40306,4463.6,4463.5,1.5851]
[1759880523040,0.40306,4463.6,4463.5,3.36297817]
[1759880525337,0.40306,4463.6,4463.5,3.76603817]
[1759880525641,0.40306,4463.6,4463.5,3.36297817]
[1759880526537,0.41176,4463.6,4463.5,3.58797817]
[1759880526937,0.40306,4463.6,4463.5,3.58797817]
[1759880527648,0.41176,4463.6,4463.5,3.58797817]
[1759880529534,1.00768,4463.5,4463.1,3.2078]
[1759880529737,0.42049,4463.2,4463.1,1.0499]
[1759880529936,0.42049,4463.2,4463.1,1.4438]
[1759880530939,0.41179,4463.2,4463.1,1.4438]
[1759880532343,0.40309,4463.2,4463.1,1.6688]
[1759880533646,0.40309,4463.2,4463.1,4.8766]
[1759880533947,0.40309,4463.2,4463.1,1.6688]
[1759880534341,0.40309,4463.2,4463.1,1.4438]
[1759880534541,0.41179,4463.2,4463.1,1.6688]
[1759880534741,0.40309,4463.2,4463.1,1.6688]
[1759880539049,0.42049,4463.2,4463.1,1.6688]
[1759880539749,0.40309,4463.2,4463.1,1.4438]
[1759880540746,0.40309,4463.2,4463.1,1.6688]
[1759880542148,3.2078,4463.8,4463.1,2.0719]
[1759880542353,0.40306,4463.6,4463.5,0.2563]
[1759880542554,0.40306,4463.6,4463.5,1.0585]
[1759880543052,0.40306,4463.6,4463.5,3.47797817]
[1759880547554,0.41176,4463.6,4463.5,3.47797817]
[1759880547950,0.43066,4463.6,4463.5,0.8979]
[1759880548151,0.4409,4463.1,4463.0,1.23440516]
[1759880548352,0.4409,4463.1,4463.0,1.45940516]
[1759880548658,0.4409,4463.1,4463.0,1.63650516]
[1759880548852,0.4409,4463.1,4463.0,1.45940516]
[1759880549454,0.4409,4463.1,4463.0,1.23440516]
[1759880549651,5.4527,4463.1,4463.0,0.00250516]
[1759880549856,8.3067308,4463.1,4463.0,0.00250516]
[1759880550053,0.0378,4462.2,4462.1,0.586]
[1759880550258,0.45278,4462.2,4462.1,0.586]
[1759880550460,0.44102,4461.8,4461.7,0.586]
[1759880550658,0.44104,4461.6,4461.5,4.4562]
[1759880550954,0.44104,4461.6,4461.5,1.6505]
[1759880551148,0.40325,4461.4,4461.3,0.47266251]
[1759880551355,0.9851997,4461.4,4461.3,1.05866251]
[1759880551658,3.31835858,4461.4,4461.3,1.46836251]
[1759880551962,3.31835858,4461.4,4461.3,1.05866251]
[1759880552158,3.31835858,4461.4,4461.3,1.06117368]
[1759880552359,3.31835858,4461.4,4461.3,0.47517368]
[1759880552360,3.33015858,4461.4,4461.3,0.47517368]
[1759880552560,0.40342,4459.6,4459.5,1.2613]
[1759880552767,0.225,4459.6,4459.0,0.2527]
[1759880553058,0.40345,4459.3,4459.1,0.4097]
[1759880553258,0.40346,4459.1,4459.0,0.2527]
[1759880553458,3.61290251,4459.1,4459.0,1.25045229]
[1759880553664,11.71054989,4459.1,4459.0,0.84075229]
[1759880553959,0.00164251,4459.1,4459.0,3.43043046]
[1759880554261,0.22664251,4459.1,4459.0,3.43043046]
[1759880554461,0.00164251,4459.1,4459.0,1.65255229]
[1759880554662,6.39865705,4459.1,4459.0,1.25045229]
[1759880555457,6.39865705,4459.1,4459.0,1.65255229]
[1759880555961,3.20944251,4459.1,4459.0,1.65255229]
[1759880556156,3.153538,4459.1,4459.0,0.84075229]
[1759880556466,3.556998,4459.1,4459.0,0.84075229]
[1759880556858,3.331998,4459.1,4459.0,0.84075229]
[1759880557063,3.153538,4459.1,4459.0,1.65255229]
[1759880557866,2.928538,4459.1,4459.0,1.23897998]
[1759880558159,7.928538,4459.1,4459.0,0.82927998]
[1759880558361,7.928538,4459.1,4459.0,0.51716865]
[1759880558564,0.40351,4458.6,4458.5,0.2527]
[1759880558757,3.61131,4458.6,4458.5,0.2527]
[1759880558957,6.75733842,4458.6,4458.5,0.2527]
[1759880559355,11.35382842,4458.6,4458.0,0.2527]
[1759880559558,0.4036,4457.6,4457.5,0.2527]
[1759880559865,6.707663,4457.6,4457.5,0.2527]
[1759880560556,0.40363,4457.2,4457.1,0.6313]
[1759880560756,0.62863,4457.2,4457.1,0.6313]
[1759880561062,3.51966731,4457.2,4457.1,0.6313]
[1759880561657,3.51966731,4457.2,4457.1,0.63376475]
[1759880562264,8.51966731,4457.2,4457.1,0.6313]
[1759880562466,2.89103731,4457.2,4457.1,0.6313]
[1759880562766,3.2078,4457.6,4457.1,0.4213]
[1759880562767,2.94681,4457.5,4457.1,0.4213]
[1759880562966,6.15461,4457.5,4457.4,1.4614]
[1759880563267,6.15461,4457.5,4455.8,1.23441]
[1759880563268,10.09099,4457.2,4454.9,2.8096084]
[1759880563561,3.61149,4456.6,4456.5,0.2607]
[1759880563756,3.2078,4456.6,4456.5,0.2607]
[1759880564064,6.16943117,4456.6,4456.5,0.2607]
[1759880564266,6.39443117,4456.6,4456.5,0.26298662]
[1759880564464,0.40373,4456.1,4456.0,0.2607]
[1759880564664,3.61153,4456.1,4456.0,0.2607]
[1759880564864,6.73609264,4456.1,4456.0,0.2607]
[1759880565368,11.73609264,4456.1,4456.0,0.89430591]
[1759880566066,11.51109264,4456.1,4456.0,0.89430591]
[1759880566267,11.73609264,4456.1,4456.0,0.89430591]
[1759880566965,11.51109264,4456.1,4456.0,0.89430591]
[1759880567569,6.51109264,4456.1,4456.0,0.89430591]
[1759880567963,6.73609264,4456.1,4456.0,0.89430591]
[1759880568264,6.51109264,4456.1,4456.0,0.89430591]
[1759880568465,6.73609264,4456.1,4456.0,0.89430591]
[1759880569168,6.51109264,4456.1,4456.0,0.89430591]
[1759880569361,6.73609264,4456.1,4456.0,0.89430591]
[1759880569766,6.51109264,4456.1,4456.0,0.89430591]
[1759880570465,6.10736264,4456.1,4456.0,0.89430591]
[1759880570767,6.33236264,4456.1,4456.0,0.89430591]
[1759880570967,2.89956264,4456.1,4456.0,0.89430591]
[1759880571264,3.61149,4456.6,4456.1,0.6313]
[1759880571265,2.97984349,4456.5,4456.1,0.6313]
[1759880571470,0.225,4456.4,4456.1,0.6313]
[1759880571670,3.2078,4456.6,4456.5,0.2607]
[1759880571970,6.28922715,4456.6,4456.5,0.892]
[1759880572369,6.06422715,4456.6,4456.5,0.892]
[1759880572770,6.28922715,4456.6,4456.5,0.892]
[1759880574366,3.08142715,4456.6,4456.5,0.892]
[1759880574767,3.08142715,4456.6,4456.0,0.26300591]
[1759880574768,0.40373,4456.1,4456.0,0.26300591]
[1759880574963,6.46791715,4456.6,4456.5,0.2607]
[1759880575169,3.83649,4456.6,4456.5,0.2607]
[1759880575369,6.73568817,4456.6,4456.5,0.2607]
[1759880575870,6.33199817,4456.6,4456.5,0.2607]
[1759880576172,6.10699817,4456.6,4456.5,0.2607]
[1759880576567,2.89919817,4456.6,4456.5,0.2607]
[1759880576771,2.89919817,4456.6,4456.5,0.892]
[1759880578774,0.40367,4456.8,4456.6,0.6274]
[1759880579669,0.40366,4457.0,4456.7,0.40367]
[1759880579863,2.97604578,4457.2,4457.0,0.2489]
[1759880580068,2.97604578,4457.2,4457.1,0.6274]
[1759880581164,0.225,4457.6,4457.1,0.6274]
[1759880581363,0.225,4457.6,4457.3,0.40362]
[1759880581667,0.225,4457.6,4457.5,0.8763]
[1759880582067,1.57674026,4457.7,4457.6,1.03099]
[1759880582369,0.05430735,4457.7,4457.6,0.40359]
[1759880582566,3.2078,4458.3,4458.1,0.40355]
[1759880582767,0.40352,4458.6,4458.5,0.2489]
[1759880583079,0.40352,4458.6,4458.0,0.2489]
[1759880583080,0.40355,4458.1,4458.0,0.2489]
[1759880583270,3.83635,4458.1,4458.0,0.2489]
[1759880583471,2.90187686,4458.1,4458.0,0.2489]
[1759880583670,4.08428379,4458.1,4458.0,0.2489]
[1759880583972,4.12992398,4458.1,4458.0,0.2489]
[1759880584675,2.94751705,4458.1,4458.0,0.2489]
[1759880584878,2.94751705,4458.1,4458.0,0.8763]
[1759880585063,2.90411671,4458.2,4458.0,0.65246]
[1759880585267,4.08652364,4458.3,4458.1,0.40355]
[1759880585570,1.58593693,4458.4,4458.2,0.6274]
[1759880585769,1.18240693,4458.3,4458.2,0.6274]
[1759880585969,1.18240693,4458.4,4458.3,0.6274]
[1759880586474,4.39020693,4458.6,4458.4,0.40353]
[1759880586670,3.2078,4458.6,4458.5,0.8763]
[1759880586871,1.18240693,4458.8,4458.7,0.6274]
[1759880587167,0.00164251,4459.1,4459.0,1.27977]
[1759880587477,3.38173098,4459.1,4459.0,0.8763]
[1759880592478,0.00164251,4459.1,4459.0,0.8763]
[1759880592778,0.00164251,4459.1,4459.0,1.2941]
[1759880592973,0.00164251,4459.1,4459.0,1.7132]
[1759880594579,0.53011557,4459.1,4459.0,0.8763]
[1759880594777,0.53011557,4459.1,4459.0,1.2941]
[1759880594967,0.53011557,4459.1,4459.0,1.7132]
[1759880597978,0.93357557,4459.1,4459.0,1.7132]
[1759880603890,8.84844408,4459.1,4459.0,0.76198892]
[1759880604077,3.84844408,4459.1,4459.0,1.17978892]
[1759880604285,3.44498408,4459.1,4459.0,1.59888892]
[1759880604486,3.66998408,4459.1,4459.0,1.59888892]
[1759880605082,0.75511557,4459.1,4459.0,1.59888892]
[1759880605285,0.53011557,4459.1,4459.0,1.59888892]
[1759880606087,0.00164251,4459.1,4459.0,1.59888892]
[1759880607987,0.00164251,4459.1,4459.0,2.00235892]
[1759880610486,0.00164251,4459.1,4459.0,2.22735892]
[1759880610987,2.19075693,4460.5,4459.6,1.88742]
[1759880610988,3.2078,4459.7,4459.6,1.88742]
[1759880611389,3.2078,4459.7,4459.6,7.11242]
[1759880611595,3.2078,4460.6,4460.5,1.7568]
[1759880611787,0.51057062,4460.6,4460.5,1.75955631]
[1759880612387,0.01235449,4460.6,4460.5,1.75955631]
[1759880612584,3.4338,4461.3,4461.2,1.484]
[1759880612887,6.41482556,4461.3,4461.2,1.484]
[1759880613283,6.81808556,4461.3,4461.2,1.0702]
[1759880613594,6.82070008,4461.3,4461.2,1.0702]
[1759880613892,6.82070008,4461.3,4461.2,1.484]
[1759880614995,6.19144008,4461.3,4461.2,1.484]
[1759880615295,0.00261452,4461.3,4461.2,1.484]
[1759880623010,0.00261452,4461.3,4461.2,1.88727]
[1759880624101,0.00261452,4461.3,4461.1,0.226]
[1759880624102,0.40322,4461.8,4461.7,1.90653]
[1759880624302,0.40321,4461.9,4461.8,1.90652]
[1759880624712,0.40321,4461.9,4461.8,1.5033]
[1759880625212,0.40495583,4461.9,4461.8,1.90652]
[1759880626308,0.40495583,4461.9,4461.8,1.5033]
[1759880626910,0.40495583,4461.9,4461.8,1.7283]
[1759880628013,0.00174583,4461.9,4461.8,2.13152]
[1759880629506,3.2298,4462.9,4461.8,2.13152]
[1759880629507,3.63292,4462.9,4462.8,1.5033]
[1759880630017,0.42512,4462.9,4462.8,1.5033]
[1759880630212,0.022,4462.9,4462.8,1.90643]
[1759880630412,0.02368466,4462.9,4462.8,1.90643]
[1759880631219,0.02368466,4462.9,4462.8,1.5033]
[1759880632423,2.8779527,4462.9,4462.8,0.6359]
[1759880632719,7.8779527,4462.9,4462.8,0.6359]
[1759880634223,2.8779527,4462.9,4462.8,0.6359]
[1759880636225,2.8779527,4462.9,4462.8,1.5033]
[1759880638027,2.8779527,4462.9,4462.8,0.6359]
[1759880638231,7.8779527,4462.9,4462.8,0.6359]
[1759880639828,3.2810727,4462.9,4462.8,0.6359]
[1759880640230,8.2810727,4462.9,4462.8,0.6359]
[1759880640930,3.2810727,4462.9,4462.8,1.0929]
[1759880641227,3.2810727,4462.9,4462.8,1.5267]
[1759880642330,3.78634016,4462.9,4462.8,1.5267]
[1759880642531,3.2810727,4462.9,4462.8,1.5267]
[1759880643223,3.78653435,4462.9,4462.8,1.5267]
[1759880644129,0.42680466,4462.9,4462.8,1.5267]
[1759880647235,0.02368466,4462.9,4462.8,1.92983]
[1759880647533,0.02368466,4462.9,4462.8,6.92983]
[1759880650930,1.23256,4464.0,4462.8,6.92983]
[1759880650931,1.18240693,4464.7,4464.5,0.2739]
[1759880651134,0.40296,4464.7,4464.6,1.5644]
[1759880651433,3.77475595,4464.7,4464.6,1.5644]
[1759880651931,3.77682309,4464.7,4464.6,1.56657104]
[1759880653339,8.77682309,4464.7,4464.5,0.2739]
[1759880653542,0.40301,4464.1,4464.0,0.2739]
[1759880653927,3.25289867,4464.1,4464.0,0.7309]
[1759880654427,3.25289867,4464.1,4464.0,0.73280726]
[1759880655436,3.25289867,4464.1,4464.0,1.40640726]
[1759880656135,3.25289867,4464.1,4464.0,1.84020726]
[1759880660038,0.40301,4464.1,4464.0,1.84020726]
[1759880660634,21.15991,4463.8,4462.7,0.6736]
[1759880660947,0.40313,4462.8,4462.7,0.6736]
[1759880661137,1.13374336,4462.8,4462.7,0.6736]
[1759880661336,4.04018776,4462.8,4462.7,0.6736]
[1759880661840,4.04018776,4462.8,4462.7,0.67601417]
[1759880662237,0.40315,4462.6,4462.0,0.2739]
[1759880662433,3.83595,4462.6,4462.0,0.2739]
[1759880662631,7.24755546,4462.6,4462.0,0.2739]
[1759880663244,7.24755546,4462.6,4462.5,0.27567988]
[1759880664239,7.24755546,4462.6,4462.5,0.94927988]
[1759880668241,6.7419421,4462.6,4462.5,0.94927988]
[1759880669646,6.7419421,4462.6,4462.5,1.40627988]
[1759880671935,6.5169421,4462.6,4462.5,1.85627988]
[1759880673748,0.40315,4462.6,4462.5,6.18267988]
[1759880674349,0.40313,4462.8,4462.7,0.8758]
[1759880674545,0.40313,4462.8,4462.7,1.5316]
[1759880675844,0.40309,4463.2,4463.1,0.6558]
[1759880676043,0.40306,4463.6,4463.5,1.1449]
[1759880676249,0.40306,4463.6,4463.5,1.8007]
[1759880681954,0.40306,4463.6,4463.5,2.20376]
[1759880682155,0.40306,4463.6,4463.5,1.8007]